fUSD/lending_fUSD_20250414
["ID","MTS","AMOUNT","RATE_DAILY","PERIOD"]
[357954302,1744615847087,-500.0,0.00019178,2]
[357954303,1744615847096,-500.0,0.00019178,2]
[357954304,1744615847108,-500.0,0.00019178,2]
[357954305,1744615847118,-500.0,0.00019178,2]
[357954306,1744615847127,-500.0,0.00019178,2]
[357954307,1744615847136,-500.0,0.00019178,2]
[357954308,1744615847145,-624.06,0.00019178,2]
[357954309,1744615847155,-500.0,0.00019178,2]
[357954310,1744615847164,-500.0,0.00019178,2]
[357954311,1744615847173,-500.0,0.00019178,2]
[357954312,1744615847182,-500.0,0.00019178,2]
[357954313,1744615847191,-500.0,0.00019178,2]
[357954314,1744615847200,-500.0,0.00019178,2]
[357954315,1744615847209,-500.0,0.00019178,2]
[357954316,1744615847218,-5000.0,0.00019178,2]
[357954317,1744615847228,-500.0,0.00019178,2]
[357954318,1744615847237,-525.00882563,0.00019178,2]
[357954319,1744615847246,-500.0,0.00019178,2]
[357954320,1744615847255,-500.0,0.00019178,2]
[357954321,1744615847264,-1798.84,0.00019178,2]
[357954322,1744615847274,-500.0,0.00019178,2]
[357954323,1744615847283,-500.0,0.00019178,2]
[357954324,1744615847292,-500.0,0.00019178,2]
[357954325,1744615847302,-500.0,0.00019178,2]
[357954326,1744615847311,-500.0,0.00019178,2]
[357954327,1744615847321,-519.18541583,0.00019178,2]
[357954328,1744615847330,-500.0,0.00019178,2]
[357954329,1744615847340,-500.0,0.00019178,2]
[357954330,1744615847351,-500.0,0.00019178,2]
[357954331,1744615847361,-500.0,0.00019178,2]
[357954332,1744615847370,-500.0,0.00019178,2]
[357954333,1744615847380,-500.0,0.00019178,2]
[357954334,1744615847390,-500.0,0.00019178,2]
[357954335,1744615847399,-500.0,0.00019178,2]
[357954336,1744615847408,-500.0,0.00019178,2]
[357954337,1744615847418,-500.0,0.00019178,2]
[357954338,1744615847427,-500.0,0.00019178,2]
[357954339,1744615847436,-500.0,0.00019178,2]
[357954340,1744615847446,-500.0,0.00019178,2]
[357954341,1744615847455,-500.0,0.00019178,2]
[357954342,1744615847465,-500.0,0.00019178,2]
[357954343,1744615847475,-500.0,0.00019178,2]
[357954344,1744615847484,-500.0,0.00019178,2]
[357954345,1744615847493,-500.0,0.00019178,2]
[357954346,1744615847502,-500.0,0.00019178,2]
[357954347,1744615847512,-500.0,0.00019178,2]
[357954348,1744615847521,-1251.51,0.00019178,2]
[357954349,1744615847530,-170.53,0.00019225,2]
[357954350,1744615847539,-150.0,0.00019233,2]
[357954351,1744615847549,-1394.92587142,0.00019261,2]
[357954352,1744615847558,-1089.29970465,0.00019261,2]
[357954353,1744615847567,-200.0,0.00019288,2]
[357954354,1744615847576,-670.42938841,0.00019324,2]
[357954355,1744615847585,-1394.92587142,0.00019352,2]
[357954356,1744615847595,-1089.29970465,0.00019352,2]
[357954357,1744615847604,-500.0,0.00019352,2]
[357954358,1744615847614,-1000.0,0.00019352,2]
[357954359,1744615847623,-30206.8746,0.00019352,2]
[357954360,1744615847635,-1394.92587142,0.00019443,2]
[357954361,1744615847657,-1089.29970465,0.00019443,2]
[357954362,1744615847676,-2082.11,0.00019451,2]
[357954363,1744615847687,-178.08609034,0.00019451,2]
[357954364,1744615847696,-191.653237,0.00019451,2]
[357954365,1744615847705,-1240.54,0.00019451,2]
[357954366,1744615847715,-500.0,0.00019451,2]
[357954367,1744615847724,-500.0,0.00019451,2]
[357954368,1744615847733,-500.0,0.00019452,2]
[357954369,1744615847743,-409.61,0.00019452,2]
[357954370,1744615847752,-389.91807129,0.00019452,2]
[357954371,1744615847762,-531.89,0.00019452,2]
[357954372,1744615847774,-500.0,0.00019452,2]
[357954373,1744615847784,-399.7,0.00019452,2]
[357954374,1744615847793,-500.0,0.00019452,2]
[357954375,1744615847802,-500.0,0.00019452,2]
[357954376,1744615847812,-500.0,0.00019452,2]
[357954377,1744615847822,-500.0,0.00019452,2]
[357954378,1744615847831,-500.0,0.00019452,2]
[357954379,1744615847841,-500.0,0.00019452,2]
[357954380,1744615847852,-500.0,0.00019452,2]
[357954381,1744615847861,-500.0,0.00019452,2]
[357954382,1744615847871,-369.32654153,0.00019452,2]
[357954383,1744615847880,-155.394914,0.00019452,2]
[357954384,1744615847889,-500.0,0.00019452,2]
[357954385,1744615847899,-500.0,0.00019452,2]
[357954386,1744615847909,-500.0,0.00019452,2]
[357954387,1744615847919,-500.0,0.00019452,2]
[357954388,1744615847928,-160.03,0.00019452,2]
[357954389,1744615847938,-500.0,0.00019452,2]
[357954390,1744615847948,-500.0,0.00019452,2]
[357954391,1744615847957,-500.0,0.00019452,2]
[357954392,1744615847967,-500.0,0.00019452,2]
[357954393,1744615847976,-500.0,0.00019452,2]
[357954394,1744615847986,-500.0,0.00019452,2]
[357954395,1744615847996,-413.4,0.00019452,2]
[357954396,1744615848005,-500.0,0.00019452,2]
[357954397,1744615848015,-531.19766003,0.00019452,2]
[357954398,1744615848026,-580.66482238,0.00019452,2]
[357954399,1744615848037,-500.0,0.00019452,2]
[357954400,1744615848049,-500.0,0.00019452,2]
[357954401,1744615848060,-500.0,0.00019452,2]
[357954402,1744615848071,-500.0,0.00019452,2]
[357954403,1744615848081,-500.0,0.00019452,2]
[357954404,1744615848091,-500.0,0.00019452,2]
[357954405,1744615848105,-397.34513334,0.00019452,2]
[357954406,1744615848115,-234.96684583,0.00019452,2]
[357954407,1744615848125,-500.0,0.00019452,2]
[357954408,1744615848135,-390.4,0.00019452,2]
[357954409,1744615848145,-549.44,0.00019452,2]
[357954410,1744615848154,-502.95613348,0.00019452,2]
[357954411,1744615848164,-500.0,0.00019452,2]
[357954412,1744615848174,-500.0,0.00019452,2]
[357954413,1744615848184,-500.0,0.00019452,2]
[357954414,1744615848193,-500.0,0.00019452,2]
[357954415,1744615848203,-572.53742257,0.00019452,2]
[357954416,1744615848213,-500.0,0.00019452,2]
[357954417,1744615848223,-558.56244935,0.00019452,2]
[357954418,1744615848232,-500.0,0.00019452,2]
[357954419,1744615848242,-500.0,0.00019452,2]
[357954420,1744615848252,-500.0,0.00019452,2]
[357954421,1744615848262,-500.0,0.00019452,2]
[357954422,1744615848271,-751.81,0.00019452,2]
[357954423,1744615848280,-554.33386073,0.00019452,2]
[357954424,1744615848290,-500.0,0.00019452,2]
[357954425,1744615848300,-500.0,0.00019452,2]
[357954426,1744615848310,-500.0,0.00019452,2]
[357954427,1744615848320,-547.22802066,0.00019452,2]
[357954428,1744615848330,-507.32447413,0.00019452,2]
[357954429,1744615848340,-500.0,0.00019452,2]
[357954430,1744615848350,-500.0,0.00019452,2]
[357954431,1744615848361,-586.41623347,0.00019452,2]
[357954432,1744615848371,-336.90805414,0.00019452,2]
[357954433,1744615848380,-500.0,0.00019452,2]
[357954434,1744615848389,-500.0,0.00019452,2]
[357954435,1744615848399,-500.0,0.00019452,2]
[357954436,1744615848409,-500.0,0.00019452,2]
[357954437,1744615848419,-560.72790628,0.00019452,2]
[357954438,1744615848428,-540.94462221,0.00019452,2]
[357954439,1744615848438,-509.77,0.00019452,2]
[357954440,1744615848448,-500.0,0.00019452,2]
[357954441,1744615848458,-524.48685617,0.00019452,2]
[357954442,1744615848468,-500.0,0.00019452,2]
[357954443,1744615848477,-500.0,0.00019452,2]
[357954444,1744615848487,-500.0,0.00019452,2]
[357954445,1744615848497,-500.0,0.00019452,2]
[357954446,1744615848507,-500.0,0.00019452,2]
[357954447,1744615848516,-500.0,0.00019452,2]
[357954448,1744615848525,-553.52533242,0.00019452,2]
[357954449,1744615848534,-500.0,0.00019452,2]
[357954450,1744615848544,-500.0,0.00019452,2]
[357954451,1744615848553,-500.0,0.00019452,2]
[357954452,1744615848563,-500.0,0.00019452,2]
[357954453,1744615848572,-500.0,0.00019452,2]
[357954454,1744615848582,-500.0,0.00019452,2]
[357954455,1744615848591,-500.0,0.00019452,2]
[357954456,1744615848600,-500.0,0.00019452,2]
[357954457,1744615848609,-500.0,0.00019452,2]
[357954458,1744615848619,-527.14851133,0.00019452,2]
[357954459,1744615848629,-500.0,0.00019452,2]
[357954460,1744615848638,-560.7186956,0.00019452,2]
[357954461,1744615848647,-500.0,0.00019452,2]
[357954462,1744615848657,-500.0,0.00019452,2]
[357954463,1744615848666,-500.0,0.00019452,2]
[357954464,1744615848676,-500.0,0.00019452,2]
[357954465,1744615848685,-500.0,0.00019452,2]
[357954466,1744615848695,-500.0,0.00019452,2]
[357954467,1744615848704,-500.0,0.00019452,2]
[357954468,1744615848714,-500.0,0.00019452,2]
[357954469,1744615848724,-500.0,0.00019452,2]
[357954470,1744615848733,-290.66,0.00019452,2]
[357954471,1744615848743,-500.0,0.00019452,2]
[357954472,1744615848753,-500.0,0.00019452,2]
[357954473,1744615848764,-519.51,0.00019452,2]
[357954474,1744615848777,-500.0,0.00019452,2]
[357954475,1744615848787,-500.0,0.00019452,2]
[357954476,1744615848796,-213.89587466,0.00019452,2]
[357954477,1744615848806,-500.0,0.00019452,2]
[357954478,1744615848817,-500.0,0.00019452,2]
[357954479,1744615848827,-613.64375704,0.00019452,2]
[357954480,1744615848837,-500.0,0.00019452,2]
[357954481,1744615848985,-443.75,0.00019452,2]
[357954482,1744615848995,-500.0,0.00019452,2]
[357954483,1744615849005,-500.0,0.00019452,2]
[357954484,1744615849014,-500.0,0.00019452,2]
[357954485,1744615849025,-195.52,0.00019452,2]
[357954486,1744615849036,-500.0,0.00019452,2]
[357954487,1744615849046,-500.0,0.00019452,2]
[357954488,1744615849059,-572.83,0.00019452,2]
[357954489,1744615849070,-500.0,0.00019452,2]
[357954490,1744615849081,-500.0,0.00019452,2]
[357954491,1744615849092,-500.0,0.00019452,2]
[357954492,1744615849106,-500.0,0.00019452,2]
[357954493,1744615849117,-500.0,0.00019452,2]
[357954494,1744615849128,-500.0,0.00019452,2]
[357954495,1744615849138,-500.0,0.00019452,2]
[357954496,1744615849148,-538.19736968,0.00019452,2]
[357954497,1744615849159,-500.0,0.00019452,2]
[357954498,1744615849169,-500.0,0.00019452,2]
[357954499,1744615849179,-500.0,0.00019452,2]
[357954500,1744615849190,-500.0,0.00019452,2]
[357954501,1744615849200,-500.0,0.00019452,2]
[357954502,1744615849211,-500.0,0.00019452,2]
[357954503,1744615849222,-500.0,0.00019452,2]
[357954504,1744615849233,-551.73,0.00019452,2]
[357954505,1744615849243,-500.0,0.00019452,2]
[357954506,1744615849253,-500.0,0.00019452,2]
[357954507,1744615849264,-500.0,0.00019452,2]
[357954508,1744615849275,-500.0,0.00019452,2]
[357954509,1744615849285,-493.52130783,0.00019452,2]
[357954510,1744615849295,-500.0,0.00019452,2]
[357954511,1744615849306,-500.0,0.00019452,2]
[357954512,1744615849315,-500.0,0.00019452,2]
[357954513,1744615849325,-500.0,0.00019452,2]
[357954514,1744615849334,-500.0,0.00019452,2]
[357954515,1744615849344,-580.20740016,0.00019452,2]
[357954516,1744615849357,-500.0,0.00019452,2]
[357954517,1744615849367,-500.0,0.00019452,2]
[357954518,1744615849377,-500.0,0.00019452,2]
[357954519,1744615849386,-386.74,0.00019452,2]
[357954520,1744615849396,-598.2174127,0.00019452,2]
[357954521,1744615849405,-571.69807942,0.00019452,2]
[357954522,1744615849415,-500.0,0.00019452,2]
[357954523,1744615849424,-500.0,0.00019452,2]
[357954524,1744615849433,-500.0,0.00019452,2]
[357954525,1744615849443,-244.63,0.00019452,2]
[357954526,1744615849452,-500.0,0.00019452,2]
[357954527,1744615849462,-500.0,0.00019452,2]
[357954528,1744615849470,-500.0,0.00019452,2]
[357954529,1744615849478,-500.0,0.00019452,2]
[357954530,1744615849486,-500.0,0.00019452,2]
[357954531,1744615849495,-500.0,0.00019452,2]
[357954532,1744615849505,-500.0,0.00019452,2]
[357954533,1744615849515,-546.31850816,0.00019452,2]
[357954534,1744615849524,-626.48,0.00019452,2]
[357954535,1744615849534,-500.0,0.00019452,2]
[357954536,1744615849544,-433.68158638,0.00019452,2]
[357954537,1744615849554,-245.13028586,0.00019452,2]
[357954538,1744615849564,-500.0,0.00019452,2]
[357954539,1744615849574,-500.0,0.00019452,2]
[357954540,1744615849583,-564.45,0.00019452,2]
[357954541,1744615849593,-500.0,0.00019452,2]
[357954542,1744615849603,-500.0,0.00019452,2]
[357954543,1744615849613,-535.2,0.00019452,2]
[357954544,1744615849623,-500.0,0.00019452,2]
[357954545,1744615849633,-500.0,0.00019452,2]
[357954546,1744615849643,-500.0,0.00019452,2]
[357954547,1744615849653,-500.0,0.00019452,2]
[357954548,1744615849662,-402.45,0.00019452,2]
[357954549,1744615849672,-500.0,0.00019452,2]
[357954550,1744615849681,-500.0,0.00019452,2]
[357954551,1744615849692,-500.0,0.00019452,2]
[357954552,1744615849702,-500.0,0.00019452,2]
[357954553,1744615849714,-500.0,0.00019452,2]
[357954554,1744615849725,-500.0,0.00019452,2]
[357954555,1744615849735,-500.0,0.00019452,2]
[357954556,1744615849746,-702.05,0.00019452,2]
[357954557,1744615849757,-500.0,0.00019452,2]
[357954558,1744615849770,-500.0,0.00019452,2]
[357954559,1744615849786,-721.36,0.00019452,2]
[357954560,1744615849796,-557.81,0.00019452,2]
[357954561,1744615849806,-500.0,0.00019452,2]
[357954562,1744615849820,-500.0,0.00019452,2]
[357954563,1744615849829,-500.0,0.00019452,2]
[357954564,1744615849839,-500.0,0.00019452,2]
[357954565,1744615849849,-500.0,0.00019452,2]
[357954566,1744615849860,-500.0,0.00019452,2]
[357954567,1744615849870,-500.0,0.00019452,2]
[357954568,1744615849879,-524.87201907,0.00019452,2]
[357954569,1744615849889,-500.0,0.00019452,2]
[357954570,1744615849898,-500.0,0.00019452,2]
[357954571,1744615849907,-500.0,0.00019452,2]
[357954572,1744615849916,-500.0,0.00019452,2]
[357954573,1744615849926,-500.0,0.00019452,2]
[357954574,1744615849935,-500.0,0.00019452,2]
[357954575,1744615849944,-551.72,0.00019452,2]
[357954576,1744615849953,-535.35644548,0.00019452,2]
[357954577,1744615849963,-500.0,0.00019452,2]
[357954578,1744615849972,-500.0,0.00019452,2]
[357954579,1744615849982,-1105.24,0.00019452,2]
[357954580,1744615849991,-500.0,0.00019452,2]
[357954581,1744615850001,-500.0,0.00019452,2]
[357954582,1744615850011,-500.0,0.00019452,2]
[357954583,1744615850021,-500.0,0.00019452,2]
[357954584,1744615850030,-500.0,0.00019452,2]
[357954585,1744615850040,-718.28,0.00019452,2]
[357954586,1744615850049,-500.0,0.00019452,2]
[357954587,1744615850059,-500.0,0.00019452,2]
[357954588,1744615850069,-500.0,0.00019452,2]
[357954589,1744615850080,-500.0,0.00019452,2]
[357954590,1744615850090,-52767.51,0.00019452,2]
[357954591,1744615850099,-549.37292646,0.00019452,2]
[357954592,1744615850110,-500.0,0.00019452,2]
[357954593,1744615850121,-500.0,0.00019452,2]
[357954594,1744615850131,-500.0,0.00019452,2]
[357954595,1744615850141,-500.0,0.00019452,2]
[357954596,1744615850150,-500.0,0.00019452,2]
[357954597,1744615850160,-714.29,0.00019452,2]
[357954598,1744615850170,-500.0,0.00019452,2]
[357954599,1744615850179,-500.0,0.00019452,2]
[357954600,1744615850189,-500.0,0.00019452,2]
[357954601,1744615850199,-500.0,0.00019452,2]
[357954602,1744615850209,-528.19755462,0.00019452,2]
[357954603,1744615850219,-500.0,0.00019452,2]
[357954604,1744615850229,-500.0,0.00019452,2]
[357954605,1744615850239,-500.0,0.00019452,2]
[357954606,1744615850249,-500.0,0.00019452,2]
[357954607,1744615850258,-537.35,0.00019452,2]
[357954608,1744615850268,-500.0,0.00019452,2]
[357954609,1744615850279,-544.71378128,0.00019452,2]
[357954610,1744615850288,-500.0,0.00019452,2]
[357954611,1744615850298,-500.0,0.00019452,2]
[357954612,1744615850307,-500.0,0.00019452,2]
[357954613,1744615850317,-326.96,0.00019452,2]
[357954614,1744615850327,-2246.79,0.00019452,2]
[357954615,1744615850336,-500.0,0.00019452,2]
[357954616,1744615850346,-500.0,0.00019452,2]
[357954617,1744615850358,-500.0,0.00019452,2]
[357954618,1744615850367,-500.0,0.00019452,2]
[357954619,1744615850377,-495.41,0.00019452,2]
[357954620,1744615850387,-500.0,0.00019452,2]
[357954621,1744615850396,-500.0,0.00019452,2]
[357954622,1744615850407,-500.0,0.00019452,2]
[357954623,1744615850417,-500.0,0.00019452,2]
[357954624,1744615850427,-500.0,0.00019452,2]
[357954625,1744615850437,-500.0,0.00019452,2]
[357954626,1744615850447,-290.69,0.00019452,2]
[357954627,1744615850456,-500.0,0.00019452,2]
[357954628,1744615850466,-247.46,0.00019452,2]
[357954629,1744615850475,-500.0,0.00019452,2]
[357954630,1744615850485,-521.24087855,0.00019452,2]
[357954631,1744615850495,-500.0,0.00019452,2]
[357954632,1744615850504,-500.0,0.00019452,2]
[357954633,1744615850514,-500.0,0.00019452,2]
[357954634,1744615850524,-259.68,0.00019452,2]
[357954635,1744615850534,-500.0,0.00019452,2]
[357954636,1744615850544,-500.0,0.00019452,2]
[357954637,1744615850554,-1300.28,0.00019452,2]
[357954638,1744615850563,-500.0,0.00019452,2]
[357954639,1744615850574,-348.3,0.00019452,2]
[357954640,1744615850584,-6011.3,0.00019452,2]
[357954641,1744615850594,-391.34,0.00019452,2]
[357954642,1744615850604,-500.0,0.00019452,2]
[357954643,1744615850615,-300.0,0.00019452,2]
[357954644,1744615850625,-500.0,0.00019452,2]
[357954645,1744615850635,-500.0,0.00019452,2]
[357954646,1744615850644,-427.09,0.00019452,2]
[357954647,1744615850654,-500.0,0.00019452,2]
[357954648,1744615850664,-500.0,0.00019452,2]
[357954649,1744615850674,-500.0,0.00019452,2]
[357954650,1744615850684,-500.0,0.00019452,2]
[357954651,1744615850693,-500.0,0.00019452,2]
[357954652,1744615850703,-500.0,0.00019452,2]
[357954653,1744615850712,-500.0,0.00019452,2]
[357954654,1744615850723,-500.0,0.00019452,2]
[357954655,1744615850732,-500.0,0.00019452,2]
[357954656,1744615850741,-515.98720866,0.00019452,2]
[357954657,1744615850751,-500.0,0.00019452,2]
[357954658,1744615850761,-500.0,0.00019452,2]
[357954659,1744615850775,-500.0,0.00019452,2]
[357954660,1744615850784,-500.0,0.00019452,2]
[357954661,1744615850793,-500.0,0.00019452,2]
[357954662,1744615850803,-500.0,0.00019452,2]
[357954663,1744615850813,-563.16,0.00019452,2]
[357954664,1744615850823,-500.0,0.00019452,2]
[357954665,1744615850833,-500.0,0.00019452,2]
[357954666,1744615850844,-615.78106471,0.00019452,2]
[357954667,1744615850854,-500.0,0.00019452,2]
[357954668,1744615850864,-500.0,0.00019452,2]
[357954669,1744615850873,-500.0,0.00019452,2]
[357954670,1744615850883,-500.0,0.00019452,2]
[357954671,1744615850893,-1277.54,0.00019452,2]
[357954672,1744615850903,-617.72198286,0.00019452,2]
[357954673,1744615850913,-500.0,0.00019452,2]
[357954674,1744615850923,-589.49,0.00019452,2]
[357954675,1744615850933,-500.0,0.00019452,2]
[357954676,1744615850943,-524.59621713,0.00019452,2]
[357954677,1744615850952,-500.0,0.00019452,2]
[357954678,1744615850962,-364.21581263,0.00019452,2]
[357954679,1744615850971,-500.0,0.00019452,2]
[357954680,1744615850981,-500.0,0.00019452,2]
[357954681,1744615850990,-500.0,0.00019452,2]
[357954682,1744615851000,-563.18937279,0.00019452,2]
[357954683,1744615851009,-500.0,0.00019452,2]
[357954684,1744615851019,-547.51,0.00019452,2]
[357954685,1744615851029,-500.0,0.00019452,2]
[357954686,1744615851039,-500.0,0.00019452,2]
[357954687,1744615851048,-500.0,0.00019452,2]
[357954688,1744615851058,-500.0,0.00019452,2]
[357954689,1744615851068,-500.0,0.00019452,2]
[357954690,1744615851078,-500.0,0.00019452,2]
[357954691,1744615851087,-500.0,0.00019452,2]
[357954692,1744615851097,-500.0,0.00019452,2]
[357954693,1744615851109,-500.0,0.00019452,2]
[357954694,1744615851118,-500.0,0.00019452,2]
[357954695,1744615851130,-500.0,0.00019452,2]
[357954696,1744615851140,-500.0,0.00019452,2]
[357954697,1744615851149,-202.01389214,0.00019452,2]
[357954698,1744615851159,-500.0,0.00019452,2]
[357954699,1744615851170,-500.0,0.00019452,2]
[357954700,1744615851180,-524.61717776,0.00019452,2]
[357954701,1744615851191,-500.0,0.00019452,2]
[357954702,1744615851201,-500.0,0.00019452,2]
[357954703,1744615851211,-396.51,0.00019452,2]
[357954704,1744615851221,-500.0,0.00019452,2]
[357954705,1744615851231,-500.0,0.00019452,2]
[357954706,1744615851241,-500.0,0.00019452,2]
[357954707,1744615851252,-500.0,0.00019452,2]
[357954708,1744615851262,-521.5508334,0.00019452,2]
[357954709,1744615851271,-500.0,0.00019452,2]
[357954710,1744615851281,-500.0,0.00019452,2]
[357954711,1744615851291,-517.55547331,0.00019452,2]
[357954712,1744615851301,-500.0,0.00019452,2]
[357954713,1744615851311,-500.0,0.00019452,2]
[357954714,1744615851321,-500.0,0.00019452,2]
[357954715,1744615851331,-500.0,0.00019452,2]
[357954716,1744615851340,-500.0,0.00019452,2]
[357954717,1744615851350,-500.0,0.00019452,2]
[357954718,1744615851363,-500.0,0.00019452,2]
[357954719,1744615851373,-526.76076233,0.00019452,2]
[357954720,1744615851501,-500.0,0.00019452,2]
[357954721,1744615851511,-500.0,0.00019452,2]
[357954722,1744615851521,-508.95217236,0.00019452,2]
[357954723,1744615851531,-1053.69,0.00019452,2]
[357954724,1744615851541,-500.0,0.00019452,2]
[357954725,1744615851550,-500.0,0.00019452,2]
[357954726,1744615851560,-574.57803976,0.00019452,2]
[357954727,1744615851570,-270.34136482,0.00019452,2]
[357954728,1744615851579,-500.0,0.00019452,2]
[357954729,1744615851589,-500.0,0.00019452,2]
[357954730,1744615851599,-528.88500928,0.00019452,2]
[357954731,1744615851610,-500.0,0.00019452,2]
[357954732,1744615851620,-500.0,0.00019452,2]
[357954733,1744615851630,-500.0,0.00019452,2]
[357954734,1744615851640,-570.51064157,0.00019452,2]
[357954735,1744615851650,-566.48,0.00019452,2]
[357954736,1744615851660,-500.0,0.00019452,2]
[357954737,1744615851670,-500.0,0.00019452,2]
[357954738,1744615851680,-500.0,0.00019452,2]
[357954739,1744615851689,-511.98199353,0.00019452,2]
[357954740,1744615851699,-500.0,0.00019452,2]
[357954741,1744615851709,-1473.9,0.00019452,2]
[357954742,1744615851719,-500.0,0.00019452,2]
[357954743,1744615851729,-561.09542457,0.00019452,2]
[357954744,1744615851739,-500.0,0.00019452,2]
[357954745,1744615851748,-600.0,0.00019452,2]
[357954746,1744615851758,-220.37,0.00019452,2]
[357954747,1744615851769,-500.0,0.00019452,2]
[357954748,1744615851784,-624.06,0.00019452,2]
[357954749,1744615851794,-500.0,0.00019452,2]
[357954750,1744615851803,-500.0,0.00019452,2]
[357954751,1744615851814,-510.41337585,0.00019452,2]
[357954752,1744615851823,-500.0,0.00019452,2]
[357954753,1744615851832,-500.0,0.00019452,2]
[357954754,1744615851842,-500.0,0.00019452,2]
[357954755,1744615851854,-500.0,0.00019452,2]
[357954756,1744615851864,-1798.84,0.00019452,2]
[357954757,1744615851874,-500.0,0.00019452,2]
[357954758,1744615851884,-500.0,0.00019452,2]
[357954759,1744615851893,-500.0,0.00019452,2]
[357954760,1744615851903,-500.0,0.00019452,2]
[357954761,1744615851913,-506.15435221,0.00019452,2]
[357954762,1744615851923,-500.0,0.00019452,2]
[357954763,1744615851933,-500.0,0.00019452,2]
[357954764,1744615851944,-500.0,0.00019452,2]
[357954765,1744615851954,-500.0,0.00019452,2]
[357954766,1744615851964,-500.0,0.00019452,2]
[357954767,1744615851972,-500.0,0.00019452,2]
[357954768,1744615851980,-3122.12893381,0.00019456,2]
[357954769,1744615851988,-504.0037658,0.00019473,2]
[357954770,1744615851998,-323.6451562,0.00019473,2]
[357954771,1744615852006,-360.26739713,0.00019473,2]
[357954772,1744615852014,-500.0,0.00019473,2]
[357954773,1744615852024,-500.0,0.00019473,2]
[357954774,1744615852033,-500.0,0.00019473,2]
[357954775,1744615852041,-500.0,0.00019473,2]
[357954776,1744615852048,-173.18927045,0.00019489,2]
[357954777,1744615852055,-361.61015629,0.00019516,2]
[357954778,1744615852064,-1394.92587142,0.00019535,2]
[357954779,1744615852074,-1089.29970465,0.00019535,2]
[357954780,1744615852083,-150.0,0.000196,2]
[357954781,1744615852093,-1394.92587142,0.00019626,2]
[357954782,1744615852103,-1089.29970465,0.00019626,2]
[357954783,1744615852113,-200.0,0.00019697,2]
[357954784,1744615852123,-166.37806411,0.00019699,2]
[357954785,1744615852133,-1000.0,0.000197,2]
[357954786,1744615852142,-1202.23689031,0.00019714,2]
[357954787,1744615852153,-1394.92587142,0.00019717,2]
[357954788,1744615852163,-1089.29970465,0.00019717,2]
[357954789,1744615852172,-500.0,0.00019725,2]
[357954790,1744615852181,-500.0,0.00019725,2]
[357954791,1744615852190,-500.0,0.00019726,2]
[357954792,1744615852200,-500.0,0.00019726,2]
[357954793,1744615852209,-500.0,0.00019726,2]
[357954794,1744615852219,-500.0,0.00019726,2]
[357954795,1744615852230,-500.0,0.00019726,2]
[357954796,1744615852239,-500.0,0.00019726,2]
[357954797,1744615852249,-500.0,0.00019726,2]
[357954798,1744615852258,-500.0,0.00019726,2]
[357954799,1744615852266,-500.0,0.00019726,2]
[357954800,1744615852275,-500.0,0.00019726,2]
[357954801,1744615852283,-500.0,0.00019726,2]